fUSD/lending_fUSD_20240331
["ID","MTS","AMOUNT","RATE_DAILY","PERIOD"]
[321111715,1711900286715,-500.0,0.00055068,120]
[321111716,1711900286727,-500.0,0.00055068,120]
[321111717,1711900286739,-499.67867206,0.00055068,120]
[321111718,1711900286751,-11263.13,0.00055068,120]
[321111719,1711900286764,-500.0,0.00055068,120]
[321111720,1711900286776,-500.0,0.00055068,120]
[321111721,1711900286788,-500.0,0.00055068,120]
[321111722,1711900286801,-500.0,0.00055068,120]
[321111723,1711900286813,-504.83405339,0.00055068,120]
[321111724,1711900286825,-500.0,0.00055068,120]
[321111725,1711900286837,-6135.58,0.00055068,120]
[321111726,1711900286849,-500.0,0.00055068,120]
[321111727,1711900286862,-500.0,0.00055068,120]
[321111728,1711900286875,-1063.3,0.00055068,120]
[321111729,1711900286887,-500.0,0.00055068,120]
[321111730,1711900286900,-500.0,0.00055068,120]
[321111731,1711900286912,-1083.6,0.00055068,120]
[321111732,1711900286926,-500.0,0.00055068,120]
[321111733,1711900286940,-509.71683105,0.00055068,120]
[321111734,1711900286952,-500.0,0.00055068,120]
[321111735,1711900286964,-500.0,0.00055068,120]
[321111736,1711900286977,-1674.93,0.00055068,120]
[321111737,1711900286990,-500.0,0.00055068,120]
[321111738,1711900287003,-151.0,0.00055068,120]
[321111739,1711900287021,-500.0,0.00055068,120]
[321111740,1711900287034,-500.0,0.00055068,120]
[321111741,1711900287047,-547.37,0.00055068,120]
[321111742,1711900287060,-500.0,0.00055068,120]
[321111743,1711900287073,-500.0,0.00055068,120]
[321111744,1711900287086,-1968.84,0.00055068,120]
[321111745,1711900287099,-500.0,0.00055068,120]
[321111746,1711900287111,-3729.06,0.00055068,120]
[321111747,1711900287123,-500.0,0.00055068,120]
[321111748,1711900287136,-500.0,0.00055068,120]
[321111749,1711900287148,-4646.47,0.00055068,120]
[321111750,1711900287160,-500.0,0.00055068,120]
[321111751,1711900287172,-500.0,0.00055068,120]
[321111752,1711900287185,-2179.05,0.00055068,120]
[321111753,1711900287197,-500.0,0.00055068,120]
[321111754,1711900287209,-500.0,0.00055068,120]
[321111755,1711900287221,-500.0,0.00055068,120]
[321111756,1711900287234,-16968.39,0.00055068,120]
[321111757,1711900287246,-370.13584359,0.00055068,120]
[321111758,1711900287260,-500.0,0.00055068,120]
[321111759,1711900287273,-500.0,0.00055068,120]
[321111760,1711900287285,-500.0,0.00055068,120]
[321111761,1711900287298,-29017.57,0.00055068,120]
[321111762,1711900287310,-500.0,0.00055068,120]
[321111763,1711900287322,-551.57,0.00055068,120]
[321111764,1711900287335,-584.14,0.00055068,120]
[321111765,1711900287346,-500.0,0.00055068,120]
[321111766,1711900287360,-500.0,0.00055068,120]
[321111767,1711900287371,-500.0,0.00055068,120]
[321111768,1711900287383,-500.0,0.00055068,120]
[321111769,1711900287395,-890.16,0.00055068,120]
[321111770,1711900287407,-3354.8,0.00055068,120]
[321111771,1711900287419,-500.0,0.00055068,120]
[321111772,1711900287431,-500.0,0.00055068,120]
[321111773,1711900287443,-911.19,0.00055068,120]
[321111774,1711900287455,-500.0,0.00055068,120]
[321111775,1711900287466,-500.0,0.00055068,120]
[321111776,1711900287479,-770.28,0.00055068,120]
[321111777,1711900287489,-749.8,0.00055068,120]
[321111778,1711900287501,-500.0,0.00055068,120]
[321111779,1711900287513,-500.0,0.00055068,120]
[321111780,1711900287525,-572.04228695,0.00055068,120]
[321111781,1711900287537,-500.0,0.00055068,120]
[321111782,1711900287548,-1117.84,0.00055068,120]
[321111783,1711900287560,-500.0,0.00055068,120]
[321111784,1711900287572,-500.0,0.00055068,120]
[321111785,1711900287583,-500.0,0.00055068,120]
[321111786,1711900287595,-501.23468864,0.00055068,120]
[321111787,1711900287607,-500.0,0.00055068,120]
[321111788,1711900287619,-542.88,0.00055068,120]
[321111789,1711900287630,-1829.63,0.00055068,120]
[321111790,1711900287642,-500.0,0.00055068,120]
[321111791,1711900287654,-500.0,0.00055068,120]
[321111792,1711900287666,-3744.87,0.00055068,120]
[321111793,1711900287678,-500.0,0.00055068,120]
[321111794,1711900287690,-500.0,0.00055068,120]
[321111795,1711900287702,-506.73094754,0.00055068,120]
[321111796,1711900287714,-500.0,0.00055068,120]
[321111797,1711900287725,-500.0,0.00055068,120]
[321111798,1711900287737,-500.0,0.00055068,120]
[321111799,1711900287748,-500.0,0.00055068,120]
[321111800,1711900287761,-1553.34,0.00055068,120]
[321111801,1711900287773,-500.0,0.00055068,120]
[321111802,1711900287784,-500.0,0.00055068,120]
[321111803,1711900288135,-500.0,0.00055068,120]
[321111804,1711900288175,-1915.68,0.00055068,120]
[321111805,1711900288211,-500.0,0.00055068,120]
[321111806,1711900288221,-500.0,0.00055068,120]
[321111807,1711900288230,-500.0,0.00055068,120]
[321111808,1711900288239,-500.0,0.00055068,120]
[321111809,1711900288249,-500.0,0.00055068,120]
[321111810,1711900288267,-500.0,0.00055068,120]
[321111811,1711900288277,-500.0,0.00055068,120]
[321111812,1711900288287,-500.0,0.00055068,120]
[321111813,1711900288297,-500.0,0.00055068,120]
[321111814,1711900288309,-500.0,0.00055068,120]
[321111815,1711900288318,-500.0,0.00055068,120]
[321111816,1711900288328,-584.91,0.00055068,120]
[321111817,1711900288337,-500.0,0.00055068,120]
[321111818,1711900288347,-1875.4,0.00055068,120]
[321111819,1711900288357,-500.0,0.00055068,120]
[321111820,1711900288368,-500.0,0.00055068,120]
[321111821,1711900288378,-882.75,0.00055068,120]
[321111822,1711900288388,-500.0,0.00055068,120]
[321111823,1711900288397,-500.0,0.00055068,120]
[321111824,1711900288407,-733.42,0.00055068,120]
[321111825,1711900288416,-500.0,0.00055068,120]
[321111826,1711900288426,-784.97,0.00055068,120]
[321111827,1711900288435,-500.0,0.00055068,120]
[321111828,1711900288445,-500.0,0.00055068,120]
[321111829,1711900288455,-2559.61,0.00055068,120]
[321111830,1711900288465,-500.0,0.00055068,120]
[321111831,1711900288474,-500.0,0.00055068,120]
[321111832,1711900288484,-4029.59,0.00055068,120]
[321111833,1711900288493,-1741.29,0.00055068,120]
[321111834,1711900288503,-500.0,0.00055068,120]
[321111835,1711900288513,-500.0,0.00055068,120]
[321111836,1711900288522,-8811.85,0.00055068,120]
[321111837,1711900288532,-612.97,0.00055068,120]
[321111838,1711900288542,-500.0,0.00055068,120]
[321111839,1711900288551,-500.0,0.00055068,120]
[321111840,1711900288560,-500.0,0.00055068,120]
[321111841,1711900288570,-500.0,0.00055068,120]
[321111842,1711900288580,-500.0,0.00055068,120]
[321111843,1711900288589,-500.0,0.00055068,120]
[321111844,1711900288598,-7506.96,0.00055068,21]
[321111845,1711900288608,-2797.36,0.00055068,120]
[321111846,1711900288617,-500.0,0.00055068,120]
[321111847,1711900288627,-1677.22,0.00055068,120]
[321111848,1711900288637,-500.0,0.00055068,120]
[321111849,1711900288646,-500.0,0.00055068,120]
[321111850,1711900288656,-500.0,0.00055068,120]
[321111851,1711900288665,-1296.66,0.00055068,120]
[321111852,1711900288675,-500.0,0.00055068,120]
[321111853,1711900288684,-500.0,0.00055068,120]
[321111854,1711900288694,-966.37,0.00055068,120]
[321111855,1711900288704,-500.0,0.00055068,120]
[321111856,1711900288713,-500.0,0.00055068,120]
[321111857,1711900288723,-500.0,0.00055068,120]
[321111858,1711900288733,-500.0,0.00055068,120]
[321111859,1711900288767,-500.0,0.00055068,120]
[321111860,1711900288778,-500.0,0.00055068,120]
[321111861,1711900288790,-500.0,0.00055068,120]
[321111862,1711900288800,-12461.24,0.00055068,120]
[321111863,1711900288810,-3203.08,0.00055068,120]
[321111864,1711900288820,-500.0,0.00055068,120]
[321111865,1711900288830,-500.0,0.00055068,120]
[321111866,1711900288839,-376.41199642,0.00055068,120]
[321111867,1711900288849,-525.28295573,0.00055068,120]
[321111868,1711900288858,-1043.52,0.00055068,120]
[321111869,1711900288867,-500.0,0.00055068,120]
[321111870,1711900288877,-4560.05,0.00055068,120]
[321111871,1711900288886,-500.0,0.00055068,120]
[321111872,1711900288895,-500.0,0.00055068,120]
[321111873,1711900288905,-500.0,0.00055068,120]
[321111874,1711900288916,-502.58900893,0.00055068,120]
[321111875,1711900288926,-500.0,0.00055068,120]
[321111876,1711900288935,-500.0,0.00055068,120]
[321111877,1711900288944,-500.0,0.00055068,120]
[321111878,1711900288954,-500.0,0.00055068,120]
[321111879,1711900288964,-500.0,0.00055068,120]
[321111880,1711900288974,-1828.48,0.00055068,120]
[321111881,1711900288985,-513.27022088,0.00055068,120]
[321111882,1711900288995,-500.0,0.00055068,120]
[321111883,1711900289004,-500.0,0.00055068,120]
[321111884,1711900289015,-500.0,0.00055068,120]
[321111885,1711900289024,-500.0,0.00055068,7]
[321111886,1711900289034,-868.97,0.00055068,120]
[321111887,1711900289044,-1209.33,0.00055068,120]
[321111888,1711900289054,-500.0,0.00055068,120]
[321111889,1711900289064,-500.0,0.00055068,120]
[321111890,1711900289073,-500.0,0.00055068,120]
[321111891,1711900289084,-500.0,0.00055068,120]
[321111892,1711900289094,-596.22,0.00055068,120]
[321111893,1711900289104,-500.0,0.00055068,120]
[321111894,1711900289114,-500.0,0.00055068,120]
[321111895,1711900289123,-500.0,0.00055068,120]
[321111896,1711900289133,-500.0,0.00055068,120]
[321111897,1711900289142,-609.97,0.00055068,120]
[321111898,1711900289152,-1928.53,0.00055068,120]
[321111899,1711900289161,-500.0,0.00055068,120]
[321111900,1711900289170,-500.0,0.00055068,120]
[321111901,1711900289180,-8356.87,0.00055068,120]
[321111902,1711900289189,-500.0,0.00055068,120]
[321111903,1711900289199,-500.0,0.00055068,120]
[321111904,1711900289208,-500.0,0.00055068,120]
[321111905,1711900289218,-500.0,0.00055068,120]
[321111906,1711900289228,-1782.7,0.00055068,120]
[321111907,1711900289238,-500.0,0.00055068,120]
[321111908,1711900289250,-500.0,0.00055068,120]
[321111909,1711900289266,-991.50652962,0.00055068,14]
[321111910,1711900289278,-500.0,0.00055068,120]
[321111911,1711900289289,-525.13,0.00055068,120]
[321111912,1711900289301,-1415.86,0.00055068,120]
[321111913,1711900289311,-500.0,0.00055068,120]
[321111914,1711900289320,-500.0,0.00055068,120]
[321111915,1711900289330,-500.0,0.00055068,120]
[321111916,1711900289341,-2311.2,0.00055068,120]
[321111917,1711900289351,-1616.02,0.00055068,120]
[321111918,1711900289361,-500.0,0.00055068,120]
[321111919,1711900289371,-500.0,0.00055068,120]
[321111920,1711900289381,-12648.79,0.00055068,120]
[321111921,1711900289392,-500.0,0.00055068,120]
[321111922,1711900289402,-500.0,0.00055068,120]
[321111923,1711900289412,-2232.12,0.00055068,120]
[321111924,1711900289421,-504.39348691,0.00055068,120]
[321111925,1711900289432,-1508.33,0.00055068,120]
[321111926,1711900289441,-500.0,0.00055068,120]
[321111927,1711900289451,-500.0,0.00055068,120]
[321111928,1711900289461,-500.0,0.00055068,120]
[321111929,1711900289471,-500.0,0.00055068,120]
[321111930,1711900289481,-500.0,0.00055068,120]
[321111931,1711900289491,-500.0,0.00055068,120]
[321111932,1711900289500,-500.0,0.00055068,120]
[321111933,1711900289510,-500.0,0.00055068,120]
[321111934,1711900289519,-500.0,0.00055068,120]
[321111935,1711900289529,-500.0,0.00055068,120]
[321111936,1711900289538,-682.15,0.00055068,120]
[321111937,1711900289548,-500.0,0.00055068,7]
[321111938,1711900289557,-500.0,0.00055068,120]
[321111939,1711900289567,-1065.68,0.00055068,120]
[321111940,1711900289578,-500.0,0.00055068,120]
[321111941,1711900289588,-3149.36,0.00055068,120]
[321111942,1711900289598,-2930.26,0.00055068,120]
[321111943,1711900289607,-500.0,0.00055068,120]
[321111944,1711900289616,-150.0,0.00055068,120]
[321111945,1711900289626,-500.0,0.00055068,120]
[321111946,1711900289635,-696.26,0.00055068,120]
[321111947,1711900289645,-500.0,0.00055068,120]
[321111948,1711900289654,-500.0,0.00055068,120]
[321111949,1711900289663,-500.0,0.00055068,120]
[321111950,1711900289673,-500.0,0.00055068,120]
[321111951,1711900289683,-500.0,0.00055068,120]
[321111952,1711900289693,-1509.76,0.00055068,120]
[321111953,1711900289702,-515.16,0.00055068,120]
[321111954,1711900289711,-500.0,0.00055068,120]
[321111955,1711900289720,-500.0,0.00055068,120]
[321111956,1711900289730,-564.51009863,0.00055068,120]
[321111957,1711900289741,-4982.8,0.00055068,120]
[321111958,1711900289750,-500.0,0.00055068,120]
[321111959,1711900289759,-501.76729778,0.00055068,120]
[321111960,1711900289769,-500.0,0.00055068,120]
[321111961,1711900289778,-717.55,0.00055068,120]
[321111962,1711900289788,-500.0,0.00055068,120]
[321111963,1711900289798,-2406.23,0.00055068,120]
[321111964,1711900289807,-500.0,0.00055068,120]
[321111965,1711900289816,-500.0,0.00055068,120]
[321111966,1711900289825,-500.0,0.00055068,120]
[321111967,1711900289836,-500.0,0.00055068,120]
[321111968,1711900289845,-5346.73,0.00055068,120]
[321111969,1711900289854,-688.17,0.00055068,120]
[321111970,1711900289864,-500.0,0.00055068,120]
[321111971,1711900289873,-752.11,0.00055068,120]
[321111972,1711900289882,-3295.3,0.00055068,120]
[321111973,1711900289891,-615.79,0.00055068,120]
[321111974,1711900289900,-551.95,0.00055068,120]
[321111975,1711900289910,-1648.61,0.00055068,120]
[321111976,1711900289920,-716.5,0.00055068,120]
[321111977,1711900289928,-500.0,0.00055068,120]
[321111978,1711900289937,-500.0,0.00055068,120]
[321111979,1711900289946,-694.07,0.00055068,120]
[321111980,1711900289956,-500.0,0.00055068,120]
[321111981,1711900289965,-883.93,0.00055068,120]
[321111982,1711900289981,-500.0,0.00055068,120]
[321111983,1711900289992,-513.58231179,0.00055068,120]
[321111984,1711900290002,-500.0,0.00055068,120]
[321111985,1711900290012,-500.0,0.00055068,120]
[321111986,1711900290021,-507.86372909,0.00055068,120]
[321111987,1711900290030,-500.0,0.00055068,120]
[321111988,1711900290040,-3973.68,0.00055068,120]
[321111989,1711900290050,-500.0,0.00055068,120]
[321111990,1711900290059,-1150.28,0.00055068,120]
[321111991,1711900290070,-500.0,0.00055068,120]
[321111992,1711900290080,-1646.9,0.00055068,120]
[321111993,1711900290089,-1225.53,0.00055068,120]
[321111994,1711900290099,-2159.97,0.00055068,120]
[321111995,1711900290109,-500.0,0.00055068,120]
[321111996,1711900290118,-500.0,0.00055068,120]
[321111997,1711900290128,-500.0,0.00055068,120]
[321111998,1711900290137,-994.44,0.00055068,120]
[321111999,1711900290147,-500.0,0.00055068,120]
[321112000,1711900290156,-500.0,0.00055068,120]
[321112001,1711900290165,-500.0,0.00055068,120]
[321112002,1711900290175,-1115.67,0.00055068,120]
[321112003,1711900290185,-500.0,0.00055068,120]
[321112004,1711900290194,-500.0,0.00055068,120]
[321112005,1711900290203,-4641.87,0.00055068,120]
[321112006,1711900290213,-500.0,0.00055068,120]
[321112007,1711900290223,-500.0,0.00055068,120]
[321112008,1711900290232,-8787.96,0.00055068,120]
[321112009,1711900290242,-500.0,0.00055068,120]
[321112010,1711900290252,-500.0,0.00055068,120]
[321112011,1711900290263,-500.0,0.00055068,120]
[321112012,1711900290276,-500.0,0.00055068,120]
[321112013,1711900290286,-500.0,0.00055068,120]
[321112014,1711900290296,-1194.34,0.00055068,120]
[321112015,1711900290305,-500.0,0.00055068,120]
[321112016,1711900290316,-500.0,0.00055068,120]
[321112017,1711900290325,-752.64,0.00055068,120]
[321112018,1711900290334,-500.0,0.00055068,120]
[321112019,1711900290344,-500.0,0.00055068,120]
[321112020,1711900290356,-500.0,0.00055068,120]
[321112021,1711900290366,-500.0,0.00055068,120]
[321112022,1711900290377,-3930.82,0.00055068,120]
[321112023,1711900290387,-1715.44,0.00055068,120]
[321112024,1711900290396,-500.0,0.00055068,120]
[321112025,1711900290406,-7337.25,0.00055068,120]
[321112026,1711900290416,-500.0,0.00055068,120]
[321112027,1711900290426,-512.35125862,0.00055068,120]
[321112028,1711900290436,-500.0,0.00055068,120]
[321112029,1711900290445,-500.0,0.00055068,120]
[321112030,1711900290456,-500.0,0.00055068,120]
[321112031,1711900290465,-500.0,0.00055068,120]
[321112032,1711900290475,-500.0,0.00055068,120]
[321112033,1711900290485,-1000.0,0.00055068,120]
[321112034,1711900290495,-1001.76,0.00055068,120]
[321112035,1711900290505,-500.0,0.00055068,120]
[321112036,1711900290515,-1183.78,0.00055068,120]
[321112037,1711900290524,-787.48,0.00055068,120]
[321112038,1711900290533,-939.48,0.00055068,120]
[321112039,1711900290543,-596.63,0.00055068,120]
[321112040,1711900290552,-500.0,0.00055068,120]
[321112041,1711900290562,-500.0,0.00055068,120]
[321112042,1711900290571,-500.0,0.00055068,120]
[321112043,1711900290581,-500.0,0.00055068,120]
[321112044,1711900290590,-500.0,0.00055068,120]
[321112045,1711900290600,-602.91,0.00055068,120]
[321112046,1711900290609,-500.0,0.00055068,120]
[321112047,1711900290619,-500.0,0.00055068,120]
[321112048,1711900290629,-2310.25,0.00055068,120]
[321112049,1711900290639,-1425.94,0.00055068,120]
[321112050,1711900290650,-500.0,0.00055068,120]
[321112051,1711900290660,-6224.16,0.00055068,120]
[321112052,1711900290670,-500.0,0.00055068,120]
[321112053,1711900290680,-500.0,0.00055068,120]
[321112054,1711900290690,-500.0,0.00055068,120]
[321112055,1711900290700,-520.6,0.00055068,120]
[321112056,1711900290711,-1026.37,0.00055068,120]
[321112057,1711900290721,-1747.53,0.00055068,120]
[321112058,1711900290731,-1299.9,0.00055068,120]
[321112059,1711900290742,-600.44025865,0.00055068,2]
[321112060,1711900290752,-500.0,0.00055068,120]
[321112061,1711900290763,-500.0,0.00055068,120]
[321112062,1711900290774,-413.98620796,0.00055068,120]
[321112063,1711900290784,-500.0,0.00055068,120]
[321112064,1711900290794,-500.0,0.00055068,120]
[321112065,1711900290804,-6493.36,0.00055068,120]
[321112066,1711900290814,-703.93,0.00055068,120]
[321112067,1711900290824,-569.5,0.00055068,120]
[321112068,1711900290834,-500.0,0.00055068,120]
[321112069,1711900290843,-534.81,0.00055068,120]
[321112070,1711900290853,-500.0,0.00055068,120]
[321112071,1711900290863,-670.0,0.00055068,120]
[321112072,1711900290873,-500.0,0.00055068,120]
[321112073,1711900290883,-500.0,0.00055068,120]
[321112074,1711900290892,-500.0,0.00055068,2]
[321112075,1711900290901,-500.0,0.00055068,120]
[321112076,1711900290911,-1379.27,0.00055068,120]
[321112077,1711900290920,-500.0,0.00055068,120]
[321112078,1711900290930,-500.0,0.00055068,120]
[321112079,1711900290939,-833.15,0.00055068,120]
[321112080,1711900290949,-4176.95,0.00055068,120]
[321112081,1711900290959,-500.0,0.00055068,120]
[321112082,1711900290968,-500.0,0.00055068,120]
[321112083,1711900290978,-500.0,0.00055068,120]
[321112084,1711900290988,-866.54,0.00055068,120]
[321112085,1711900290998,-500.0,0.00055068,120]
[321112086,1711900291008,-1500.0,0.00055165,14]
[321112087,1711900291019,-155.55614219,0.00055175,120]
[321112088,1711900291028,-150.0,0.000552,14]
[321112089,1711900291038,-221.99557909,0.00055213,120]
[321112090,1711900291048,-310.38293103,0.00055224,14]
[321112091,1711900291058,-1500.0,0.00055283,14]
[321112092,1711900291067,-150.0,0.00055287,14]
[321112093,1711900291078,-1043.0,0.00055288,120]
[321112094,1711900291088,-150.0,0.00055294,14]
[321112095,1711900291099,-300.0,0.00055299,14]
[321112096,1711900291109,-1500.0,0.00055315,14]
[321112097,1711900291118,-160.03811811,0.0005532,14]
[321112098,1711900291128,-150.0,0.00055337,14]
[321112099,1711900291137,-300.0,0.00055341,14]
[321112100,1711900291147,-500.0,0.00055342,120]
[321112101,1711900291156,-500.0,0.00055342,120]
[321112102,1711900291166,-500.0,0.00055342,120]
[321112103,1711900291176,-500.0,0.00055342,120]
[321112104,1711900291195,-311.96922112,0.00055342,120]
[321112105,1711900291207,-520.24709778,0.00055342,120]
[321112106,1711900291217,-500.0,0.00055342,120]
[321112107,1711900291227,-500.0,0.00055342,120]
[321112108,1711900291237,-500.0,0.00055342,120]
[321112109,1711900291247,-500.0,0.00055342,120]
[321112110,1711900291258,-500.0,0.00055342,120]
[321112111,1711900291269,-500.0,0.00055342,120]
[321112112,1711900291280,-1239.43,0.00055342,120]
[321112113,1711900291290,-500.0,0.00055342,120]
[321112114,1711900291299,-475.0,0.00055342,120]
[321112115,1711900291310,-518.61548325,0.00055342,120]
[321112116,1711900291319,-500.0,0.00055342,120]
[321112117,1711900291329,-500.0,0.00055342,120]
[321112118,1711900291338,-500.0,0.00055342,120]
[321112119,1711900291348,-641.87961156,0.00055342,120]
[321112120,1711900291359,-533.32224595,0.00055342,120]
[321112121,1711900291369,-500.0,0.00055342,120]
[321112122,1711900291378,-553.4960608,0.00055342,120]
[321112123,1711900291388,-500.0,0.00055342,120]
[321112124,1711900291397,-601.81436077,0.00055342,120]
[321112125,1711900291407,-500.0,0.00055342,120]
[321112126,1711900291658,-664.59,0.00055342,2]
[321112127,1711900291671,-500.0,0.00055342,120]
[321112128,1711900291681,-500.0,0.00055342,120]
[321112129,1711900291691,-500.0,0.00055342,120]
[321112130,1711900291703,-500.0,0.00055342,120]
[321112131,1711900291713,-500.0,0.00055342,120]
[321112132,1711900291722,-500.0,0.00055342,120]
[321112133,1711900291732,-500.0,0.00055342,120]
[321112134,1711900291742,-500.0,0.00055342,120]
[321112135,1711900291753,-500.0,0.00055342,120]
[321112136,1711900291763,-500.0,0.00055342,120]
[321112137,1711900291774,-500.0,0.00055342,120]
[321112138,1711900291784,-239.38021104,0.00055342,120]
[321112139,1711900291794,-500.0,0.00055342,120]
[321112140,1711900291803,-500.0,0.00055342,120]
[321112141,1711900291813,-500.0,0.00055342,120]
[321112142,1711900291824,-500.0,0.00055342,120]
[321112143,1711900291834,-500.0,0.00055342,120]
[321112144,1711900291844,-500.0,0.00055342,120]
[321112145,1711900291854,-500.0,0.00055342,120]
[321112146,1711900291863,-500.0,0.00055342,120]
[321112147,1711900291872,-500.0,0.00055342,120]
[321112148,1711900291882,-500.0,0.00055342,120]
[321112149,1711900291891,-514.65644965,0.00055342,120]
[321112150,1711900291903,-500.0,0.00055342,120]
[321112151,1711900291913,-500.0,0.00055342,120]
[321112152,1711900291923,-500.0,0.00055342,120]
[321112153,1711900291933,-500.0,0.00055342,120]
[321112154,1711900291942,-500.0,0.00055342,120]
[321112155,1711900291953,-500.0,0.00055342,120]
[321112156,1711900291963,-500.0,0.00055342,120]
[321112157,1711900291972,-500.0,0.00055342,120]
[321112158,1711900291983,-500.0,0.00055342,120]
[321112159,1711900291992,-545.82879251,0.00055342,120]
[321112160,1711900292002,-500.0,0.00055342,120]
[321112161,1711900292014,-500.0,0.00055342,120]
[321112162,1711900292024,-500.0,0.00055342,120]
[321112163,1711900292033,-622.03,0.00055342,120]
[321112164,1711900292043,-527.64,0.00055342,120]
[321112165,1711900292053,-500.0,0.00055342,120]
[321112166,1711900292063,-500.0,0.00055342,120]
[321112167,1711900292072,-500.0,0.00055342,120]
[321112168,1711900292082,-500.0,0.00055342,120]
[321112169,1711900292092,-500.0,0.00055342,120]
[321112170,1711900292101,-500.0,0.00055342,120]
[321112171,1711900292111,-500.0,0.00055342,120]
[321112172,1711900292121,-500.0,0.00055342,120]
[321112173,1711900292131,-500.0,0.00055342,120]
[321112174,1711900292140,-500.0,0.00055342,30]
[321112175,1711900292151,-337.96026789,0.00055342,120]
[321112176,1711900292161,-500.0,0.00055342,120]
[321112177,1711900292170,-500.0,0.00055342,120]
[321112178,1711900292180,-500.0,0.00055342,120]
[321112179,1711900292190,-500.0,0.00055342,2]
[321112180,1711900292200,-518.1639774,0.00055342,120]
[321112181,1711900292211,-500.0,0.00055342,120]
[321112182,1711900292221,-500.0,0.00055342,120]
[321112183,1711900292231,-500.0,0.00055342,120]
[321112184,1711900292242,-500.0,0.00055342,120]
[321112185,1711900292254,-500.0,0.00055342,120]
[321112186,1711900292265,-500.0,0.00055342,120]
[321112187,1711900292277,-500.0,0.00055342,120]
[321112188,1711900292288,-500.0,0.00055342,120]
[321112189,1711900292299,-500.0,0.00055342,120]
[321112190,1711900292308,-500.0,0.00055342,120]
[321112191,1711900292319,-500.0,0.00055342,120]
[321112192,1711900292329,-500.0,0.00055342,120]
[321112193,1711900292339,-500.0,0.00055342,120]
[321112194,1711900292350,-500.0,0.00055342,120]
[321112195,1711900292360,-500.0,0.00055342,120]
[321112196,1711900292370,-500.0,0.00055342,120]
[321112197,1711900292379,-500.0,0.00055342,120]
[321112198,1711900292389,-500.0,0.00055342,120]
[321112199,1711900292399,-500.0,0.00055342,120]
[321112200,1711900292409,-500.0,0.00055342,120]
[321112201,1711900292418,-500.0,0.00055342,120]
[321112202,1711900292428,-500.0,0.00055342,120]
[321112203,1711900292437,-500.0,0.00055342,120]
[321112204,1711900292447,-500.0,0.00055342,120]
[321112205,1711900292458,-500.0,0.00055342,120]
[321112206,1711900292467,-500.0,0.00055342,120]
[321112207,1711900292477,-500.0,0.00055342,120]
[321112208,1711900292487,-500.0,0.00055342,120]
[321112209,1711900292499,-500.0,0.00055342,120]
[321112210,1711900292509,-500.0,0.00055342,120]
[321112211,1711900292519,-500.0,0.00055342,120]
[321112212,1711900292528,-500.0,0.00055342,120]
[321112213,1711900292538,-500.0,0.00055342,120]
[321112214,1711900292548,-500.0,0.00055342,120]